[Event "Titled Tuesday Blitz April 18 Early 2023"]
[White "Steenbekkers, Franck"]
[Black "Fernandez Hernandez, Gerardo"]
[WhiteFideId "1004220"]
[BlackFideId "2207400"]
[WhiteElo "2083"]
[BlackElo "2178"]
[Result "1-0"]
[Round "07"]
[TimeControl "180+2"]
[Date "2023.04.18"]
[WhiteClock "0:01:12"]
[BlackClock "0:00:03"]

1. e4 {[%clk 0:02:54]}  e6 {[%clk 0:02:58]} 2. d4 {[%clk 0:02:53]}  d5 {[%clk 0:02:59]} 3. Nd2 {[%clk 0:02:52]}  Nc6 {[%clk 0:02:58]} 4. Ngf3 {[%clk 0:02:50]}  Nf6 {[%clk 0:02:58]} 5. e5 {[%clk 0:02:50]}  Nd7 {[%clk 0:02:58]} 6. Bd3 {[%clk 0:02:50]}  f6 {[%clk 0:02:58]} 7. exf6 {[%clk 0:02:49]}  Qxf6 {[%clk 0:02:58]} 8. O-O {[%clk 0:02:48]}  Bd6 {[%clk 0:02:58]} 9. c3 {[%clk 0:02:44]}  e5 {[%clk 0:02:55]} 10. dxe5 {[%clk 0:02:43]}  Ndxe5 {[%clk 0:02:55]} 11. Nxe5 {[%clk 0:02:43]}  Nxe5 {[%clk 0:02:48]} 12. Bc2 {[%clk 0:02:41]}  O-O {[%clk 0:02:45]} 13. Nb3 {[%clk 0:02:40]}  c6 {[%clk 0:02:27]} 14. Be3 {[%clk 0:02:38]}  Ng4 {[%clk 0:02:00]} 15. Bd4 {[%clk 0:02:32]}  Qh4 {[%clk 0:01:55]} 16. h3 {[%clk 0:02:31]}  Bh2+ {[%clk 0:01:29]} 17. Kh1 {[%clk 0:02:30]}  Bc7 {[%clk 0:01:14]} 18. Kg1 {[%clk 0:02:12]}  Be6 {[%clk 0:00:53]} 19. Nc5 {[%clk 0:02:05]}  Rae8 {[%clk 0:00:36]} 20. Nxb7 {[%clk 0:01:51]}  Bc8 {[%clk 0:00:19]} 21. Nc5 {[%clk 0:01:49]}  Nf6 {[%clk 0:00:16]} 22. f4 {[%clk 0:01:40]}  Bxh3 {[%clk 0:00:15]} 23. gxh3 {[%clk 0:01:29]}  Qg3+ {[%clk 0:00:15]} 24. Kh1 {[%clk 0:01:29]}  Qxh3+ {[%clk 0:00:15]} 25. Kg1 {[%clk 0:01:29]}  Qg3+ {[%clk 0:00:15]} 26. Kh1 {[%clk 0:01:29]}  Ng4 {[%clk 0:00:15]} 27. Qd2 {[%clk 0:01:20]}  Bxf4 {[%clk 0:00:10]} 28. Qg2 {[%clk 0:01:16]}  Qh4+ {[%clk 0:00:06]} 29. Kg1 {[%clk 0:01:15]}  Ne3 {[%clk 0:00:03]} 30. Qxg7# {[%clk 0:01:12]} 1-0


[Site "https://www.chess.com"]

[Event "Titled Tuesday Blitz April 18 Early 2023"]
[White "Thiel, Thomas"]
[Black "Fabris, Alberto"]
[WhiteFideId "4615964"]
[BlackFideId "801348"]
[WhiteElo "2163"]
[BlackElo "2101"]
[Result "1/2-1/2"]
[Round "07"]
[TimeControl "180+2"]
[Date "2023.04.18"]
[WhiteClock "0:00:05"]
[BlackClock "0:00:26"]

1. e4 {[%clk 0:03:00]}  c5 {[%clk 0:02:59]} 2. Nc3 {[%clk 0:02:58]}  Nc6 {[%clk 0:02:59]} 3. Bb5 {[%clk 0:02:53]}  g6 {[%clk 0:02:58]} 4. Bxc6 {[%clk 0:02:49]}  dxc6 {[%clk 0:02:58]} 5. d3 {[%clk 0:02:47]}  Bg7 {[%clk 0:02:58]} 6. Be3 {[%clk 0:02:46]}  b6 {[%clk 0:02:56]} 7. Qd2 {[%clk 0:02:46]}  Nf6 {[%clk 0:02:51]} 8. Bh6 {[%clk 0:02:44]}  O-O {[%clk 0:02:50]} 9. h4 {[%clk 0:02:42]}  e5 {[%clk 0:02:39]} 10. Nge2 {[%clk 0:02:30]}  Ng4 {[%clk 0:02:32]} 11. Bxg7 {[%clk 0:02:26]}  Kxg7 {[%clk 0:02:33]} 12. h5 {[%clk 0:02:25]}  g5 {[%clk 0:02:10]} 13. f3 {[%clk 0:02:06]}  Nh6 {[%clk 0:02:08]} 14. Ng3 {[%clk 0:02:05]}  Kh8 {[%clk 0:02:04]} 15. O-O-O {[%clk 0:02:03]}  f5 {[%clk 0:02:01]} 16. exf5 {[%clk 0:02:01]}  Nxf5 {[%clk 0:02:00]} 17. Nxf5 {[%clk 0:02:00]}  Bxf5 {[%clk 0:01:59]} 18. Qe3 {[%clk 0:01:59]}  Qf6 {[%clk 0:01:54]} 19. Rde1 {[%clk 0:01:58]}  Rae8 {[%clk 0:01:51]} 20. Ne4 {[%clk 0:01:52]}  Bxe4 {[%clk 0:01:51]} 21. Qxe4 {[%clk 0:01:52]}  Qf4+ {[%clk 0:01:50]} 22. Kb1 {[%clk 0:01:51]}  Qxe4 {[%clk 0:01:49]} 23. Rxe4 {[%clk 0:01:48]}  Rf4 {[%clk 0:01:46]} 24. Rhe1 {[%clk 0:01:43]}  Rxe4 {[%clk 0:01:45]} 25. Rxe4 {[%clk 0:01:42]}  Kg7 {[%clk 0:01:40]} 26. Kc1 {[%clk 0:01:39]}  Kf6 {[%clk 0:01:40]} 27. Kd2 {[%clk 0:01:36]}  Rg8 {[%clk 0:01:34]} 28. Ke3 {[%clk 0:01:20]}  Ke6 {[%clk 0:01:30]} 29. Rg4 {[%clk 0:01:17]}  h6 {[%clk 0:01:29]} 30. Ra4 {[%clk 0:00:58]}  a5 {[%clk 0:01:26]} 31. a3 {[%clk 0:00:56]}  Ra8 {[%clk 0:01:19]} 32. b4 {[%clk 0:00:54]}  cxb4 {[%clk 0:01:15]} 33. axb4 {[%clk 0:00:51]}  Kd6 {[%clk 0:00:55]} 34. Ke4 {[%clk 0:00:44]}  Ra7 {[%clk 0:00:50]} 35. c3 {[%clk 0:00:36]}  Ra8 {[%clk 0:00:50]} 36. Ke3 {[%clk 0:00:34]}  Kd5 {[%clk 0:00:49]} 37. Kd2 {[%clk 0:00:33]}  Ra7 {[%clk 0:00:40]} 38. Kc2 {[%clk 0:00:31]}  Ra8 {[%clk 0:00:39]} 39. Kb3 {[%clk 0:00:30]}  Ra7 {[%clk 0:00:39]} 40. bxa5 {[%clk 0:00:30]}  bxa5 {[%clk 0:00:38]} 41. Re4 {[%clk 0:00:26]}  Rb7+ {[%clk 0:00:31]} 42. Ka4 {[%clk 0:00:25]}  Rb2 {[%clk 0:00:31]} 43. Rg4 {[%clk 0:00:15]}  Ra2+ {[%clk 0:00:31]} 44. Kb3 {[%clk 0:00:13]}  Rd2 {[%clk 0:00:31]} 45. c4+ {[%clk 0:00:12]}  Kc5 {[%clk 0:00:29]} 46. Kc3 {[%clk 0:00:13]}  Rf2 {[%clk 0:00:28]} 47. Re4 {[%clk 0:00:09]}  Kd6 {[%clk 0:00:27]} 48. Rg4 {[%clk 0:00:07]}  Kc5 {[%clk 0:00:26]} 49. Re4 {[%clk 0:00:05]}  Kd6 {[%clk 0:00:26]} 50. Rg4 {[%clk 0:00:05]}  Kc5 {[%clk 0:00:26]} 1/2-1/2


[Site "https://www.chess.com"]

[Event "Titled Tuesday Blitz April 18 Early 2023"]
[White "Timofeev, Artyom"]
[Black "Tang, Andrew"]
[WhiteFideId "4140419"]
[BlackFideId "2059630"]
[WhiteElo "2586"]
[BlackElo "2596"]
[Result "1-0"]
[Round "08"]
[TimeControl "180+2"]
[Date "2023.04.18"]
[WhiteClock "0:00:04"]
[BlackClock "0:00:01"]

1. e4 {[%clk 0:03:00]}  e5 {[%clk 0:02:58]} 2. Nf3 {[%clk 0:03:00]}  Nc6 {[%clk 0:02:58]} 3. Bb5 {[%clk 0:03:00]}  g6 {[%clk 0:02:58]} 4. c3 {[%clk 0:02:57]}  a6 {[%clk 0:02:58]} 5. Ba4 {[%clk 0:02:57]}  Bg7 {[%clk 0:02:58]} 6. d4 {[%clk 0:02:56]}  exd4 {[%clk 0:02:58]} 7. cxd4 {[%clk 0:02:56]}  b5 {[%clk 0:02:59]} 8. Bb3 {[%clk 0:02:56]}  Na5 {[%clk 0:02:59]} 9. O-O {[%clk 0:02:53]}  Ne7 {[%clk 0:02:59]} 10. d5 {[%clk 0:02:53]}  O-O {[%clk 0:02:35]} 11. Nc3 {[%clk 0:02:50]}  d6 {[%clk 0:02:22]} 12. h3 {[%clk 0:02:50]}  Nxb3 {[%clk 0:02:13]} 13. Qxb3 {[%clk 0:02:45]}  c6 {[%clk 0:02:03]} 14. dxc6 {[%clk 0:02:41]}  Be6 {[%clk 0:02:01]} 15. Nd5 {[%clk 0:02:26]}  Nxc6 {[%clk 0:02:00]} 16. Bg5 {[%clk 0:02:25]}  Qd7 {[%clk 0:01:42]} 17. Rad1 {[%clk 0:02:19]}  h6 {[%clk 0:01:07]} 18. Bf4 {[%clk 0:02:07]}  Rad8 {[%clk 0:00:56]} 19. Qe3 {[%clk 0:01:54]}  g5 {[%clk 0:00:32]} 20. Bxd6 {[%clk 0:01:42]}  Qxd6 {[%clk 0:00:30]} 21. Nf6+ {[%clk 0:01:43]}  Bxf6 {[%clk 0:00:29]} 22. Rxd6 {[%clk 0:01:43]}  Rxd6 {[%clk 0:00:30]} 23. e5 {[%clk 0:01:43]}  Nxe5 {[%clk 0:00:30]} 24. Nxe5 {[%clk 0:01:42]}  Bxa2 {[%clk 0:00:30]} 25. Qa3 {[%clk 0:01:22]}  Bxe5 {[%clk 0:00:26]} 26. Qxa2 {[%clk 0:01:22]}  Rc8 {[%clk 0:00:25]} 27. b4 {[%clk 0:01:17]}  Rc4 {[%clk 0:00:24]} 28. Qe2 {[%clk 0:01:03]}  Bd4 {[%clk 0:00:22]} 29. h4 {[%clk 0:00:56]}  Rf6 {[%clk 0:00:19]} 30. hxg5 {[%clk 0:00:55]}  hxg5 {[%clk 0:00:20]} 31. Qd2 {[%clk 0:00:51]}  Rf5 {[%clk 0:00:18]} 32. g3 {[%clk 0:00:49]}  Kg7 {[%clk 0:00:17]} 33. Kg2 {[%clk 0:00:49]}  Bc3 {[%clk 0:00:16]} 34. Qd3 {[%clk 0:00:48]}  Rf6 {[%clk 0:00:16]} 35. Rc1 {[%clk 0:00:44]}  Rfc6 {[%clk 0:00:14]} 36. Qd5 {[%clk 0:00:37]}  Kg6 {[%clk 0:00:09]} 37. Rh1 {[%clk 0:00:32]}  Re6 {[%clk 0:00:07]} 38. Qd3+ {[%clk 0:00:32]}  Kf6 {[%clk 0:00:05]} 39. Rh6+ {[%clk 0:00:30]}  Ke7 {[%clk 0:00:04]} 40. Rh8 {[%clk 0:00:30]}  Bd4 {[%clk 0:00:03]} 41. Ra8 {[%clk 0:00:27]}  Rf6 {[%clk 0:00:02]} 42. Qe4+ {[%clk 0:00:27]}  Re6 {[%clk 0:00:02]} 43. Qf5 {[%clk 0:00:24]}  Bf6 {[%clk 0:00:01]} 44. Ra7+ {[%clk 0:00:23]}  Kf8 {[%clk 0:00:01]} 45. Qh7 {[%clk 0:00:23]}  Re7 {[%clk 0:00:02]} 46. Qh6+ {[%clk 0:00:21]}  Bg7 {[%clk 0:00:01]} 47. Ra8+ {[%clk 0:00:21]}  Re8 {[%clk 0:00:01]} 48. Rxe8+ {[%clk 0:00:21]}  Kxe8 {[%clk 0:00:02]} 49. Qxg7 {[%clk 0:00:21]}  g4 {[%clk 0:00:03]} 50. Qe5+ {[%clk 0:00:19]}  Kf8 {[%clk 0:00:04]} 51. Qd6+ {[%clk 0:00:20]}  Kg7 {[%clk 0:00:04]} 52. Qxa6 {[%clk 0:00:19]}  Rxb4 {[%clk 0:00:04]} 53. Qd6 {[%clk 0:00:19]}  Re4 {[%clk 0:00:04]} 54. Qd5 {[%clk 0:00:18]}  Rb4 {[%clk 0:00:02]} 55. Qe5+ {[%clk 0:00:17]}  Kg8 {[%clk 0:00:02]} 56. Qb8+ {[%clk 0:00:15]}  Kg7 {[%clk 0:00:02]} 57. Qc8 {[%clk 0:00:14]}  Rc4 {[%clk 0:00:02]} 58. Qf5 {[%clk 0:00:13]}  b4 {[%clk 0:00:02]} 59. Qg5+ {[%clk 0:00:13]}  Kf8 {[%clk 0:00:02]} 60. Qb5 {[%clk 0:00:12]}  Re4 {[%clk 0:00:02]} 61. Qb8+ {[%clk 0:00:11]}  Kg7 {[%clk 0:00:02]} 62. Kf1 {[%clk 0:00:10]}  Kg6 {[%clk 0:00:01]} 63. Qg8+ {[%clk 0:00:10]}  Kf6 {[%clk 0:00:02]} 64. Qd8+ {[%clk 0:00:09]}  Kg6 {[%clk 0:00:02]} 65. Qb6+ {[%clk 0:00:09]}  Kg5 {[%clk 0:00:02]} 66. Qc5+ {[%clk 0:00:09]}  f5 {[%clk 0:00:02]} 67. Qc6 {[%clk 0:00:08]}  Rd4 {[%clk 0:00:01]} 68. Qc7 {[%clk 0:00:06]}  Re4 {[%clk 0:00:01]} 69. Qg7+ {[%clk 0:00:05]}  Kh5 {[%clk 0:00:02]} 70. Qf7+ {[%clk 0:00:05]}  Kg5 {[%clk 0:00:02]} 71. Qb7 {[%clk 0:00:06]}  Kf6 {[%clk 0:00:02]} 72. Qc6+ {[%clk 0:00:06]}  Kf7 {[%clk 0:00:02]} 73. Qd7+ {[%clk 0:00:06]}  Kf6 {[%clk 0:00:02]} 74. Qc8 {[%clk 0:00:07]}  Kg6 {[%clk 0:00:02]} 75. Qd7 {[%clk 0:00:06]}  Kf6 {[%clk 0:00:03]} 76. Qb7 {[%clk 0:00:07]}  Kg6 {[%clk 0:00:03]} 77. Qd5 {[%clk 0:00:06]}  Kf6 {[%clk 0:00:03]} 78. Qd6+ {[%clk 0:00:07]}  Kf7 {[%clk 0:00:03]} 79. Kg2 {[%clk 0:00:07]}  Kg7 {[%clk 0:00:03]} 80. f3 {[%clk 0:00:08]}  Re2+ {[%clk 0:00:02]} 81. Kf1 {[%clk 0:00:08]}  gxf3 {[%clk 0:00:02]} 82. Qd4+ {[%clk 0:00:08]}  Kg6 {[%clk 0:00:02]} 83. Qxb4 {[%clk 0:00:08]}  Re4 {[%clk 0:00:01]} 84. Qd6+ {[%clk 0:00:08]}  Kg5 {[%clk 0:00:02]} 85. Kf2 {[%clk 0:00:09]}  Re2+ {[%clk 0:00:01]} 86. Kxf3 {[%clk 0:00:09]}  Re4 {[%clk 0:00:02]} 87. Qd8+ {[%clk 0:00:08]}  Kg6 {[%clk 0:00:02]} 88. Qf8 {[%clk 0:00:09]}  Kg5 {[%clk 0:00:03]} 89. Qg7+ {[%clk 0:00:09]}  Kh5 {[%clk 0:00:03]} 90. Kf2 {[%clk 0:00:09]}  Rc4 {[%clk 0:00:01]} 91. Qf6 {[%clk 0:00:09]}  Rc5 {[%clk 0:00:01]} 92. Qf7+ {[%clk 0:00:07]}  Kg4 {[%clk 0:00:02]} 93. Qg7+ {[%clk 0:00:05]}  Kh5 {[%clk 0:00:02]} 94. Qh8+ {[%clk 0:00:04]}  Kg5 {[%clk 0:00:01]} 95. Qg8+ {[%clk 0:00:04]}  Kh5 {[%clk 0:00:01]} 96. Qh7+ {[%clk 0:00:05]}  Kg5 {[%clk 0:00:01]} 97. Qe7+ {[%clk 0:00:04]} 1-0


[Site "https://www.chess.com"]

[Event "Titled Tuesday Blitz April 18 Early 2023"]
[White "Yeletsky, Ivan"]
[Black "Rodshtein, Maxim"]
[WhiteFideId "24180327"]
[BlackFideId "2806851"]
[WhiteElo "2422"]
[BlackElo "2555"]
[Result "0-1"]
[Round "08"]
[TimeControl "180+2"]
[Date "2023.04.18"]
[WhiteClock "0:00:02"]
[BlackClock "0:00:23"]

1. d4 {[%clk 0:03:00]}  Nf6 {[%clk 0:02:58]} 2. c4 {[%clk 0:03:00]}  e6 {[%clk 0:02:59]} 3. Nf3 {[%clk 0:03:00]}  d5 {[%clk 0:02:59]} 4. g3 {[%clk 0:02:59]}  Bb4+ {[%clk 0:02:59]} 5. Bd2 {[%clk 0:02:58]}  Bd6 {[%clk 0:02:59]} 6. Bg2 {[%clk 0:02:57]}  c6 {[%clk 0:02:58]} 7. Nc3 {[%clk 0:02:56]}  O-O {[%clk 0:02:55]} 8. b3 {[%clk 0:02:56]}  Ne4 {[%clk 0:02:54]} 9. Nxe4 {[%clk 0:02:37]}  dxe4 {[%clk 0:02:55]} 10. Ne5 {[%clk 0:02:28]}  f6 {[%clk 0:02:41]} 11. Ng4 {[%clk 0:02:20]}  e5 {[%clk 0:02:40]} 12. dxe5 {[%clk 0:02:19]}  Bc7 {[%clk 0:02:32]} 13. h3 {[%clk 0:02:14]}  f5 {[%clk 0:02:29]} 14. Ne3 {[%clk 0:01:54]}  Bxe5 {[%clk 0:02:28]} 15. Bb4 {[%clk 0:01:53]}  Bxa1 {[%clk 0:02:19]} 16. Qxa1 {[%clk 0:01:54]}  Qf6 {[%clk 0:02:10]} 17. Bc3 {[%clk 0:01:51]}  Qe7 {[%clk 0:02:10]} 18. O-O {[%clk 0:01:37]}  Be6 {[%clk 0:02:04]} 19. f4 {[%clk 0:01:17]}  exf3 {[%clk 0:01:56]} 20. exf3 {[%clk 0:01:10]}  Nd7 {[%clk 0:01:55]} 21. Kh2 {[%clk 0:01:06]}  Rae8 {[%clk 0:01:40]} 22. Re1 {[%clk 0:00:56]}  f4 {[%clk 0:01:37]} 23. gxf4 {[%clk 0:00:54]}  Qf7 {[%clk 0:01:31]} 24. f5 {[%clk 0:00:43]}  Bxf5 {[%clk 0:01:31]} 25. Nxf5 {[%clk 0:00:44]}  Rxe1 {[%clk 0:01:30]} 26. Nh6+ {[%clk 0:00:42]}  gxh6 {[%clk 0:01:30]} 27. Qxe1 {[%clk 0:00:42]}  Qf4+ {[%clk 0:01:27]} 28. Kh1 {[%clk 0:00:43]}  Nf6 {[%clk 0:01:22]} 29. Qe6+ {[%clk 0:00:35]}  Rf7 {[%clk 0:01:20]} 30. Be5 {[%clk 0:00:36]}  Qe3 {[%clk 0:00:53]} 31. f4 {[%clk 0:00:32]}  h5 {[%clk 0:00:34]} 32. Qf5 {[%clk 0:00:23]}  Qe1+ {[%clk 0:00:31]} 33. Kh2 {[%clk 0:00:20]}  Ng4+ {[%clk 0:00:31]} 34. hxg4 {[%clk 0:00:21]}  Qh4+ {[%clk 0:00:30]} 35. Kg1 {[%clk 0:00:16]}  Rxf5 {[%clk 0:00:30]} 36. gxf5 {[%clk 0:00:17]}  Qg3 {[%clk 0:00:28]} 37. f6 {[%clk 0:00:12]}  h4 {[%clk 0:00:27]} 38. Kf1 {[%clk 0:00:02]}  h3 {[%clk 0:00:27]} 39. Bh1 {[%clk 0:00:02]}  h2 {[%clk 0:00:24]} 40. Bg2 {[%clk 0:00:02]}  h5 {[%clk 0:00:23]} 0-1


[Site "https://www.chess.com"]

[Event "Titled Tuesday Blitz April 18 Early 2023"]
[White "Drozdowski, Kacper"]
[Black "So, Wesley"]
[WhiteFideId "1136720"]
[BlackFideId "5202213"]
[WhiteElo "2497"]
[BlackElo "2749"]
[Result "0-1"]
[Round "08"]
[TimeControl "180+2"]
[Date "2023.04.18"]
[WhiteClock "0:00:02"]
[BlackClock "0:00:09"]

1. e4 {[%clk 0:02:49]}  e5 {[%clk 0:02:59]} 2. Nf3 {[%clk 0:02:46]}  Nc6 {[%clk 0:02:59]} 3. Bc4 {[%clk 0:02:45]}  Nf6 {[%clk 0:02:59]} 4. d3 {[%clk 0:02:45]}  h6 {[%clk 0:02:59]} 5. c3 {[%clk 0:02:46]}  d6 {[%clk 0:02:59]} 6. Bb3 {[%clk 0:02:46]}  g5 {[%clk 0:02:53]} 7. h3 {[%clk 0:02:46]}  Bg7 {[%clk 0:02:53]} 8. Nbd2 {[%clk 0:02:46]}  d5 {[%clk 0:02:46]} 9. Qe2 {[%clk 0:02:45]}  a5 {[%clk 0:02:45]} 10. Ba4 {[%clk 0:02:30]}  O-O {[%clk 0:02:44]} 11. O-O {[%clk 0:02:21]}  Re8 {[%clk 0:02:43]} 12. Re1 {[%clk 0:02:18]}  Bd7 {[%clk 0:02:42]} 13. Nf1 {[%clk 0:02:14]}  Ne7 {[%clk 0:02:27]} 14. Bxd7 {[%clk 0:02:12]}  Nxd7 {[%clk 0:02:28]} 15. Ng3 {[%clk 0:02:08]}  c6 {[%clk 0:02:28]} 16. h4 {[%clk 0:01:59]}  f6 {[%clk 0:02:10]} 17. d4 {[%clk 0:01:53]}  Qc7 {[%clk 0:01:46]} 18. hxg5 {[%clk 0:01:51]}  fxg5 {[%clk 0:01:44]} 19. Nh5 {[%clk 0:01:37]}  Ng6 {[%clk 0:01:33]} 20. Nxg7 {[%clk 0:01:28]}  Kxg7 {[%clk 0:01:34]} 21. dxe5 {[%clk 0:01:13]}  Ndxe5 {[%clk 0:01:32]} 22. Nd4 {[%clk 0:01:13]}  dxe4 {[%clk 0:01:31]} 23. Nf5+ {[%clk 0:01:07]}  Kf6 {[%clk 0:01:22]} 24. Nxh6 {[%clk 0:01:01]}  Qd7 {[%clk 0:01:22]} 25. Qh5 {[%clk 0:00:57]}  g4 {[%clk 0:01:07]} 26. Bg5+ {[%clk 0:00:51]}  Kg7 {[%clk 0:01:07]} 27. Rxe4 {[%clk 0:00:50]}  Rh8 {[%clk 0:01:04]} 28. Rae1 {[%clk 0:00:47]}  Rae8 {[%clk 0:01:03]} 29. Qh2 {[%clk 0:00:38]}  Nf7 {[%clk 0:00:43]} 30. Rxe8 {[%clk 0:00:20]}  Rxe8 {[%clk 0:00:43]} 31. Be3 {[%clk 0:00:09]}  Rxe3 {[%clk 0:00:43]} 32. fxe3 {[%clk 0:00:08]}  Nxh6 {[%clk 0:00:40]} 33. Qb8 {[%clk 0:00:08]}  Nf7 {[%clk 0:00:36]} 34. Qg3 {[%clk 0:00:06]}  Nfe5 {[%clk 0:00:35]} 35. Rf1 {[%clk 0:00:07]}  Qe6 {[%clk 0:00:29]} 36. Qf2 {[%clk 0:00:07]}  a4 {[%clk 0:00:26]} 37. b3 {[%clk 0:00:06]}  a3 {[%clk 0:00:24]} 38. c4 {[%clk 0:00:06]}  Nd3 {[%clk 0:00:22]} 39. Qd2 {[%clk 0:00:06]}  Qe4 {[%clk 0:00:19]} 40. Qc3+ {[%clk 0:00:06]}  Kh6 {[%clk 0:00:16]} 41. Qd4 {[%clk 0:00:05]}  Qxd4 {[%clk 0:00:16]} 42. exd4 {[%clk 0:00:05]}  Ngf4 {[%clk 0:00:15]} 43. g3 {[%clk 0:00:04]}  Ne2+ {[%clk 0:00:15]} 44. Kg2 {[%clk 0:00:04]}  Nb4 {[%clk 0:00:12]} 45. d5 {[%clk 0:00:03]}  cxd5 {[%clk 0:00:13]} 46. cxd5 {[%clk 0:00:04]}  Nxd5 {[%clk 0:00:13]} 47. Rf7 {[%clk 0:00:03]}  b5 {[%clk 0:00:12]} 48. Rb7 {[%clk 0:00:03]}  b4 {[%clk 0:00:12]} 49. Kf2 {[%clk 0:00:03]}  Nec3 {[%clk 0:00:12]} 50. Rd7 {[%clk 0:00:03]}  Kg6 {[%clk 0:00:09]} 51. Kg2 {[%clk 0:00:02]}  Kf5 {[%clk 0:00:09]} 52. Rd6 {[%clk 0:00:02]}  Ke5 {[%clk 0:00:09]} 0-1


[Site "https://www.chess.com"]

[Event "Titled Tuesday Blitz April 18 Early 2023"]
[White "Narayanan.S.L"]
[Black "Aradhya, Garg"]
[WhiteFideId "5058422"]
[BlackFideId "25006746"]
[WhiteElo "2547"]
[BlackElo "2263"]
[Result "1/2-1/2"]
[Round "08"]
[TimeControl "180+2"]
[Date "2023.04.18"]
[WhiteClock "0:00:09"]
[BlackClock "0:00:09"]

1. e4 {[%clk 0:02:59]}  e5 {[%clk 0:02:59]} 2. Nf3 {[%clk 0:02:59]}  Nc6 {[%clk 0:03:00]} 3. d4 {[%clk 0:02:59]}  exd4 {[%clk 0:03:00]} 4. Nxd4 {[%clk 0:03:00]}  Nf6 {[%clk 0:03:01]} 5. Nxc6 {[%clk 0:03:01]}  bxc6 {[%clk 0:03:02]} 6. e5 {[%clk 0:03:01]}  Qe7 {[%clk 0:03:02]} 7. Qe2 {[%clk 0:03:01]}  Nd5 {[%clk 0:03:03]} 8. h4 {[%clk 0:03:02]}  h6 {[%clk 0:03:03]} 9. Nd2 {[%clk 0:02:59]}  Qe6 {[%clk 0:02:57]} 10. g3 {[%clk 0:02:55]}  Nb4 {[%clk 0:02:49]} 11. Nf3 {[%clk 0:02:40]}  Ba6 {[%clk 0:02:48]} 12. c4 {[%clk 0:02:37]}  d5 {[%clk 0:02:42]} 13. a3 {[%clk 0:02:33]}  Bxc4 {[%clk 0:02:41]} 14. Qd1 {[%clk 0:02:34]}  Na6 {[%clk 0:02:38]} 15. Bxc4 {[%clk 0:02:32]}  dxc4 {[%clk 0:02:37]} 16. O-O {[%clk 0:02:32]}  Nc5 {[%clk 0:02:32]} 17. Be3 {[%clk 0:02:27]}  Nd3 {[%clk 0:01:59]} 18. b3 {[%clk 0:02:05]}  Rd8 {[%clk 0:01:57]} 19. Nd4 {[%clk 0:02:05]}  Qd5 {[%clk 0:01:55]} 20. bxc4 {[%clk 0:02:04]}  Qxc4 {[%clk 0:01:53]} 21. e6 {[%clk 0:02:01]}  Be7 {[%clk 0:01:21]} 22. exf7+ {[%clk 0:01:55]}  Kxf7 {[%clk 0:01:21]} 23. Qf3+ {[%clk 0:01:55]}  Bf6 {[%clk 0:01:21]} 24. Nxc6 {[%clk 0:01:53]}  Rd6 {[%clk 0:01:21]} 25. Nb4 {[%clk 0:01:38]}  Ne5 {[%clk 0:01:19]} 26. Qb7 {[%clk 0:01:34]}  Qg4 {[%clk 0:01:09]} 27. Kg2 {[%clk 0:01:24]}  Rd7 {[%clk 0:01:07]} 28. f3 {[%clk 0:00:55]}  Qe6 {[%clk 0:00:55]} 29. Qe4 {[%clk 0:00:52]}  a5 {[%clk 0:00:51]} 30. Nc2 {[%clk 0:00:50]}  Nc4 {[%clk 0:00:47]} 31. Qxe6+ {[%clk 0:00:48]}  Kxe6 {[%clk 0:00:48]} 32. Rae1 {[%clk 0:00:48]}  Kf7 {[%clk 0:00:43]} 33. Bc1 {[%clk 0:00:47]}  Rd3 {[%clk 0:00:28]} 34. Re4 {[%clk 0:00:37]}  Rc3 {[%clk 0:00:28]} 35. Rf2 {[%clk 0:00:37]}  Rd8 {[%clk 0:00:27]} 36. Rfe2 {[%clk 0:00:31]}  Rd1 {[%clk 0:00:27]} 37. Bf4 {[%clk 0:00:32]}  Nd6 {[%clk 0:00:18]} 38. Ra4 {[%clk 0:00:29]}  Rdd3 {[%clk 0:00:16]} 39. Rxa5 {[%clk 0:00:27]}  Nc4 {[%clk 0:00:14]} 40. Ra7 {[%clk 0:00:26]}  Nxa3 {[%clk 0:00:14]} 41. Nxa3 {[%clk 0:00:25]}  Rxa3 {[%clk 0:00:15]} 42. Rxc7+ {[%clk 0:00:26]}  Kg6 {[%clk 0:00:15]} 43. Rf2 {[%clk 0:00:21]}  Bd4 {[%clk 0:00:14]} 44. Rf1 {[%clk 0:00:21]}  Ra2+ {[%clk 0:00:14]} 45. Kh3 {[%clk 0:00:21]}  Bf6 {[%clk 0:00:14]} 46. g4 {[%clk 0:00:19]}  Rd4 {[%clk 0:00:13]} 47. Bg3 {[%clk 0:00:18]}  Rd3 {[%clk 0:00:09]} 48. Rc5 {[%clk 0:00:15]}  Raa3 {[%clk 0:00:07]} 49. Rf5 {[%clk 0:00:15]}  h5 {[%clk 0:00:07]} 50. Rf4 {[%clk 0:00:11]}  hxg4+ {[%clk 0:00:06]} 51. Kxg4 {[%clk 0:00:12]}  Rd5 {[%clk 0:00:05]} 52. Re4 {[%clk 0:00:10]}  Raa5 {[%clk 0:00:04]} 53. Rfe1 {[%clk 0:00:08]}  Rd2 {[%clk 0:00:04]} 54. R4e2 {[%clk 0:00:06]}  Rd3 {[%clk 0:00:04]} 55. Re3 {[%clk 0:00:06]}  Rd2 {[%clk 0:00:04]} 56. R1e2 {[%clk 0:00:07]}  Rd1 {[%clk 0:00:05]} 57. Re4 {[%clk 0:00:07]}  Rg1 {[%clk 0:00:05]} 58. Kh3 {[%clk 0:00:06]}  Rf5 {[%clk 0:00:05]} 59. Rg2 {[%clk 0:00:06]}  Rf1 {[%clk 0:00:04]} 60. Rg4+ {[%clk 0:00:03]}  Kf7 {[%clk 0:00:04]} 61. f4 {[%clk 0:00:02]}  Rf3 {[%clk 0:00:04]} 62. Kh2 {[%clk 0:00:03]}  Rd5 {[%clk 0:00:04]} 63. Rf2 {[%clk 0:00:03]}  Re3 {[%clk 0:00:04]} 64. Kg2 {[%clk 0:00:03]}  Rdd3 {[%clk 0:00:05]} 65. f5 {[%clk 0:00:04]}  Re1 {[%clk 0:00:04]} 66. Rg6 {[%clk 0:00:04]}  Re8 {[%clk 0:00:04]} 67. h5 {[%clk 0:00:05]}  Rd5 {[%clk 0:00:05]} 68. h6 {[%clk 0:00:05]}  gxh6 {[%clk 0:00:05]} 69. Rxh6 {[%clk 0:00:05]}  Rg8 {[%clk 0:00:05]} 70. Rh7+ {[%clk 0:00:06]}  Rg7 {[%clk 0:00:06]} 71. Rxg7+ {[%clk 0:00:06]}  Bxg7 {[%clk 0:00:06]} 72. Kh3 {[%clk 0:00:07]}  Be5 {[%clk 0:00:06]} 73. Bh4 {[%clk 0:00:07]}  Bf6 {[%clk 0:00:06]} 74. Bg3 {[%clk 0:00:07]}  Be5 {[%clk 0:00:07]} 75. Bxe5 {[%clk 0:00:07]}  Rxe5 {[%clk 0:00:07]} 76. Kg4 {[%clk 0:00:08]}  Kf6 {[%clk 0:00:08]} 77. Ra2 {[%clk 0:00:08]}  Re4+ {[%clk 0:00:08]} 78. Kf3 {[%clk 0:00:08]}  Kxf5 {[%clk 0:00:08]} 79. Ra5+ {[%clk 0:00:09]}  Re5 {[%clk 0:00:09]} 80. Rxe5+ {[%clk 0:00:09]}  Kxe5 {[%clk 0:00:09]} 1/2-1/2


[Site "https://www.chess.com"]